fUSD/lending_fUSD_20250211
["ID","MTS","AMOUNT","RATE_DAILY","PERIOD"]
[352696678,1739248241601,-500.0,0.00011226,2]
[352696679,1739248241611,-500.0,0.00011226,2]
[352696680,1739248241621,-500.0,0.00011226,2]
[352696681,1739248241632,-500.0,0.00011226,2]
[352696682,1739248241641,-1990.82,0.00011226,2]
[352696683,1739248241652,-1373.46,0.00011226,2]
[352696684,1739248241662,-500.0,0.00011226,2]
[352696685,1739248241671,-1210.87,0.00011226,2]
[352696686,1739248241681,-500.0,0.00011226,2]
[352696687,1739248241691,-1360.66,0.00011226,2]
[352696688,1739248241701,-413.56316693,0.00011226,2]
[352696689,1739248241768,-86.43683307,0.00011226,2]
[352696690,1739248241780,-583.32,0.00011226,2]
[352696691,1739248241791,-500.0,0.00011226,2]
[352696692,1739248241803,-500.0,0.00011226,2]
[352696693,1739248241813,-500.0,0.00011226,2]
[352696694,1739248241823,-500.0,0.00011226,2]
[352696695,1739248241832,-3410.76,0.00011226,2]
[352696696,1739248241842,-500.0,0.00011226,2]
[352696697,1739248241852,-1509.01,0.00011226,2]
[352696698,1739248242046,-1374.27,0.00011226,2]
[352696699,1739248242056,-1292.77,0.00011226,2]
[352696700,1739248242066,-513.6,0.00011226,2]
[352696701,1739248242076,-500.0,0.00011226,2]
[352696702,1739248242085,-500.0,0.00011226,2]
[352696703,1739248242095,-1010.82,0.00011226,2]
[352696704,1739248242104,-500.0,0.00011226,2]
[352696705,1739248242113,-500.0,0.00011226,2]
[352696706,1739248242123,-801.74,0.00011226,2]
[352696707,1739248242133,-344.38546047,0.00011227,2]
[352696708,1739248242144,-588.94,0.00011227,2]
[352696709,1739248242153,-500.0,0.00011227,2]
[352696710,1739248242163,-508.51,0.00011227,2]
[352696711,1739248242173,-942.86,0.00011227,2]
[352696712,1739248242182,-500.0,0.00011227,2]
[352696713,1739248242192,-656.88,0.00011227,2]
[352696714,1739248242201,-934.87,0.00011227,2]
[352696715,1739248242211,-679.65,0.00011227,2]
[352696716,1739248242221,-873.29,0.00011227,2]
[352696717,1739248242231,-500.0,0.00011227,2]
[352696718,1739248242241,-1236.67,0.00011227,2]
[352696719,1739248242250,-625.77,0.00011227,2]
[352696720,1739248242260,-767.99,0.00011227,2]
[352696721,1739248242270,-105.70901186,0.00011227,2]
[352696722,1739248242285,-1126.27098814,0.00011227,2]
[352696723,1739248242295,-173.72901186,0.00011227,2]
[352696734,1739248242742,-500.0,0.00011089,2]
[352696735,1739248242752,-1629.46,0.0001109,2]
[352696736,1739248242761,-326.27098814,0.00011227,2]
[352696737,1739248242771,-500.0,0.00011227,2]
[352696738,1739248242781,-1124.08,0.00011227,2]
[352696739,1739248242792,-600.81,0.00011227,2]
[352696740,1739248242803,-568.04,0.00011227,2]
[352696741,1739248242812,-902.48,0.00011227,2]
[352696742,1739248242822,-500.0,0.00011227,2]
[352696743,1739248242832,-500.0,0.00011227,2]
[352696744,1739248242842,-500.0,0.00011227,2]
[352696745,1739248242851,-888.12,0.00011227,2]
[352696746,1739248242861,-500.0,0.00011227,2]
[352696747,1739248242872,-500.0,0.00011227,2]
[352696748,1739248242882,-500.0,0.00011227,2]
[352696749,1739248242891,-500.0,0.00011227,2]
[352696750,1739248242901,-500.0,0.00011227,2]
[352696751,1739248242911,-437.58245975,0.00011227,2]
[352696752,1739248242920,-500.0,0.00011227,2]
[352696753,1739248242930,-500.0,0.00011227,2]
[352696754,1739248242939,-500.0,0.00011227,2]
[352696755,1739248242949,-500.0,0.00011227,2]
[352696757,1739248242959,-500.0,0.00011227,2]
[352696759,1739248242968,-763.06,0.00011227,2]
[352696760,1739248242977,-576.54211316,0.00011227,2]
[352696762,1739248242987,-432.96899092,0.00011227,2]
[352696764,1739248242996,-873.69,0.00011227,2]
[352696766,1739248243006,-935.32,0.00011227,2]
[352696767,1739248243015,-707.6,0.00011227,2]
[352696768,1739248243025,-500.0,0.00011227,2]
[352696769,1739248243038,-500.0,0.00011227,2]
[352696770,1739248243047,-925.95,0.00011227,2]
[352696771,1739248243056,-748.93,0.00011227,2]
[352696773,1739248243066,-500.0,0.00011227,2]
[352696774,1739248243076,-839.7,0.00011227,2]
[352696775,1739248243085,-500.0,0.00011227,2]
[352696776,1739248243095,-500.0,0.00011227,2]
[352696777,1739248243105,-500.0,0.00011227,2]
[352696778,1739248243114,-511.71,0.00011227,2]
[352696779,1739248243124,-500.0,0.00011227,2]
[352696780,1739248243133,-500.0,0.00011227,2]
[352696781,1739248243143,-500.0,0.00011227,2]
[352696782,1739248243153,-1074.43,0.00011227,2]
[352696783,1739248243163,-500.0,0.00011227,2]
[352696784,1739248243172,-500.0,0.00011227,2]
[352696785,1739248243182,-680.98,0.00011227,2]
[352696786,1739248243192,-960.04,0.00011227,2]
[352696787,1739248243201,-500.0,0.00011227,2]
[352696788,1739248243211,-500.0,0.00011227,2]
[352696789,1739248243221,-500.0,0.00011227,2]
[352696790,1739248243231,-500.0,0.00011227,2]
[352696791,1739248243241,-756.83,0.00011227,2]
[352696792,1739248243251,-500.0,0.00011227,2]
[352696793,1739248243261,-956.47,0.00011227,2]
[352696794,1739248243271,-920.57,0.00011227,2]
[352696795,1739248243283,-526.4,0.00011227,2]
[352696796,1739248243293,-741.17,0.00011227,2]
[352696797,1739248243302,-624.62,0.00011227,2]
[352696798,1739248243312,-1154.27,0.00011227,2]
[352696799,1739248243322,-500.0,0.00011227,2]
[352696800,1739248243331,-1158.01,0.00011227,2]
[352696801,1739248243341,-500.0,0.00011227,2]
[352696802,1739248243350,-500.0,0.00011227,2]
[352696803,1739248243360,-804.47,0.00011227,2]
[352696804,1739248243369,-500.0,0.00011227,2]
[352696805,1739248243379,-500.0,0.00011227,2]
[352696806,1739248243388,-782.54,0.00011227,2]
[352696807,1739248243398,-890.91,0.00011227,2]
[352696808,1739248243408,-965.35,0.00011227,2]
[352696809,1739248243418,-500.0,0.00011227,2]
[352696810,1739248243427,-500.0,0.00011227,2]
[352696811,1739248243437,-597.53,0.00011227,2]
[352696812,1739248243447,-500.0,0.00011227,2]
[352696813,1739248243461,-1932.67,0.00011227,2]
[352696814,1739248243470,-27.07752762,0.00011227,2]
[352696815,1739248244008,-805.46000001,0.00011227,2]
[352696816,1739248244026,-262.44822189,0.00011227,2]
[352696817,1739248244052,-1558.78425048,0.00011227,2]
[352696818,1739248244061,-1512.99,0.00011227,2]
[352696819,1739248244070,-500.0,0.00011227,2]
[352696820,1739248244079,-500.0,0.00011227,2]
[352696821,1739248244089,-500.0,0.00011227,2]
[352696822,1739248244098,-1713.87,0.00011227,2]
[352696823,1739248244107,-500.0,0.00011227,2]
[352696824,1739248244117,-2122.25,0.00011227,2]
[352696825,1739248244126,-842.304755,0.00011227,2]
[352696826,1739248244135,-743.47,0.00011227,2]
[352696827,1739248244144,-2.26147912,0.00011227,2]
[352696836,1739248245880,-997.73852088,0.00011227,2]
[352696837,1739248245890,-1326.29,0.00011227,2]
[352696838,1739248245899,-1160.84,0.00011227,2]
[352696839,1739248245908,-897.029631,0.00011227,2]
[352696840,1739248245918,-648.65809429,0.00011227,2]
[352696841,1739248245930,-439.5,0.00011227,2]
[352696846,1739248603122,164.90717375,0.0002,120]
[352696847,1739249136640,1800.0,0.0002,120]
[352696848,1739249237487,501.0,0.0002,120]
[352696849,1739249409461,227.76,8.219e-05,2]
[352696864,1739249431852,-252.67,8.219e-05,2]
[352696865,1739249431862,-7675.3421,8.256e-05,2]
[352696866,1739249431871,-150.0,8.414e-05,2]
[352696867,1739249431881,-312.7031,8.699e-05,2]
[352696868,1739249431890,-150.0,8.75e-05,2]
[352696869,1739249431899,-150.0,9.081e-05,2]
[352696870,1739249431909,-944.18963949,9.158e-05,2]
[352696871,1739249431925,-793.07877249,9.158e-05,2]
[352696872,1739249431937,-334.60004339,9.158e-05,2]
[352696873,1739249431949,-694.20589383,9.158e-05,2]
[352696874,1739249431959,-310.0,9.384e-05,2]
[352696875,1739249431969,-491.91,9.4e-05,2]
[352696876,1739249431978,-180.29,9.419e-05,2]
[352696877,1739249431988,-168.96,9.608e-05,2]
[352696878,1739249431998,-243.59,0.00010137,2]
[352696879,1739249432007,-414.73,0.00010144,2]
[352696880,1739249432016,-414.73,0.00010147,2]
[352696881,1739249432025,-414.73,0.00010149,2]
[352696882,1739249432036,-414.73,0.00010152,2]
[352696883,1739249432045,-414.73,0.00010155,2]
[352696884,1739249432055,-1000.0,0.00010155,2]
[352696885,1739249432064,-414.73,0.00010157,2]
[352696886,1739249432074,-414.73,0.0001016,2]
[352696887,1739249432083,-414.73,0.00010163,2]
[352696888,1739249432093,-414.73,0.00010165,2]
[352696889,1739249432102,-414.73,0.00010168,2]
[352696890,1739249432111,-414.73,0.00010171,2]
[352696891,1739249432121,-414.73,0.00010173,2]
[352696892,1739249432130,-414.73,0.00010176,2]
[352696893,1739249432140,-414.73,0.00010179,2]
[352696894,1739249432149,-414.73,0.00010181,2]
[352696895,1739249432158,-414.73,0.00010184,2]
[352696896,1739249432168,-414.73,0.00010186,2]
[352696897,1739249432178,-414.73,0.00010189,2]
[352696898,1739249432188,-414.73,0.00010192,2]
[352696899,1739249432199,-414.73,0.00010194,2]
[352696900,1739249432209,-10512.32253454,0.0001026,2]
[352696901,1739249432219,-22152.62887668,0.00010274,2]
[352696902,1739249432231,-706.92122751,0.00010274,2]
[352696903,1739249432244,-1040.44989581,0.00010274,2]
[352696904,1739249432254,-985.61,0.00010278,2]
[352696905,1739249432264,-150.0,0.00010411,2]
[352696906,1739249432274,-480.43,0.00010443,2]
[352696907,1739249432286,-439.26,0.00010548,2]
[352696908,1739249432296,-151.35,0.00010548,2]
[352696909,1739249432306,-310.0,0.00010556,2]
[352696910,1739249432315,-985.61,0.00010575,2]
[352696911,1739249432325,-150.0,0.00010575,2]
[352696912,1739249432335,-438.84,0.00010575,2]
[352696913,1739249432344,-69.30369061,0.00010583,2]
[352696914,1739249432357,-1191.05343079,0.00010583,2]
[352696915,1739249432367,-985.61,0.00010678,2]
[352696916,1739249432377,-684.49724545,0.00010699,2]
[352696918,1739249432386,-394.78,0.00010712,2]
[352696920,1739249432396,-485.75368187,0.00010826,2]
[352696922,1739249432406,-1973.16605409,0.00010826,2]
[352696923,1739249432415,-373.75845299,0.00010827,2]
[352696924,1739249432427,-2212.79366195,0.00010827,2]
[352696925,1739249432437,-20664.21155478,0.0001083,2]
[352696927,1739249432447,-471.85060994,0.0001083,2]
[352696928,1739249432457,-10592.02453435,0.0001083,2]
[352696929,1739249432468,-922.539993,0.0001083,2]
[352696930,1739249432487,-1565.35576942,0.0001083,2]
[352696931,1739249432586,-1693.13005398,0.0001083,2]
[352696932,1739249432597,-6983.9256312,0.0001083,2]
[352696933,1739249432609,-6148.77878259,0.0001083,2]
[352696934,1739249432619,-980.98802987,0.00010837,2]
[352696935,1739249432628,-1973.16605409,0.00010839,2]
[352696936,1739249432637,-27905.75476454,0.00010844,2]
[352696937,1739249432646,-62256.61308491,0.00010844,2]
[352696938,1739249432656,-1973.16605409,0.00010845,2]
[352696939,1739249432665,-2586.55211494,0.00010846,2]
[352696940,1739249432674,-4801.36991296,0.00010846,2]
[352696941,1739249432684,-2586.55211494,0.0001085,2]
[352696942,1739249432693,-27905.75476454,0.00010852,2]
[352696943,1739249432702,-2586.55211494,0.0001086,2]
[352696944,1739249432712,-471.85060994,0.00010864,2]
[352696945,1739249432721,-485.75368187,0.00010866,2]
[352696946,1739249432730,-27905.75476454,0.00010866,2]
[352696947,1739249432740,-20664.21155478,0.00010867,2]
[352696948,1739249432749,-1973.16605409,0.00010868,2]
[352696949,1739249432758,-485.75368187,0.0001087,2]
[352696950,1739249432768,-980.98802987,0.0001087,2]
[352696951,1739249432778,-62256.61308491,0.00010871,2]
[352696952,1739249432790,-62256.61308491,0.00010872,2]
[352696953,1739249432799,-62256.61308491,0.00010873,2]
[352696954,1739249432809,-471.85060994,0.00010875,2]
[352696955,1739249432819,-980.98802987,0.00010875,2]
[352696956,1739249432829,-20664.21155478,0.00010883,2]
[352696957,1739249432838,-471.85060994,0.00010884,2]
[352696958,1739249432847,-20664.21155478,0.00010885,2]
[352696959,1739249432857,-4801.36991296,0.0001089,2]
[352696960,1739249432867,-4801.36991296,0.0001089,2]
[352696961,1739249432876,-200.0,0.00010892,2]
[352696962,1739249432885,-485.75368187,0.00010893,2]
[352696963,1739249432895,-980.98802987,0.00010893,2]
[352696964,1739249432905,-4801.36991296,0.00010898,2]
[352696965,1739249432915,-316.04448533,0.00010943,2]
[352696966,1739249432925,-150.0,0.00010959,2]
[352696967,1739249432935,-889.4333689,0.00011005,2]
[352696968,1739249432944,-383.69783459,0.00011019,2]
[352696969,1739249432953,-500.0,0.00011088,2]
[352696970,1739249432963,-581.47245907,0.00011088,2]
[352696971,1739249432972,-500.0,0.00011088,2]
[352696972,1739249432982,-500.0,0.00011088,2]
[352696973,1739249432991,-500.0,0.00011088,2]
[352696974,1739249433001,-159.10695924,0.00011088,2]
[352696975,1739249433010,-500.0,0.00011088,2]
[352696976,1739249433020,-500.0,0.00011088,2]
[352696977,1739249433029,-304.85302891,0.00011088,2]
[352696978,1739249433041,-279.31,0.00011088,2]
[352696979,1739249433051,-564.6646935,0.00011088,2]
[352696980,1739249433063,-500.0,0.00011088,2]
[352696981,1739249433072,-500.0,0.00011088,2]
[352696982,1739249433083,-500.0,0.00011088,2]
[352696983,1739249433093,-500.0,0.00011088,2]
[352696984,1739249433104,-1213.12,0.00011088,2]
[352696985,1739249433114,-500.0,0.00011088,2]
[352696986,1739249433124,-640.25,0.00011088,2]
[352696987,1739249433134,-1047.27,0.00011088,2]
[352696988,1739249433145,-500.0,0.00011088,2]
[352696989,1739249433155,-2628.04,0.00011088,2]
[352696990,1739249433165,-1044.23,0.00011088,2]
[352696991,1739249433175,-207.12858073,0.00011088,2]
[352696992,1739249433190,-1976.87,0.00011088,2]
[352696993,1739249433201,-1778.84,0.00011088,2]
[352696994,1739249433211,-1842.59,0.00011088,2]
[352696995,1739249433223,-1787.54,0.00011088,2]
[352696996,1739249433234,-809.71,0.00011088,2]
[352696997,1739249433244,-1678.53,0.00011088,2]
[352696998,1739249433254,-1510.73,0.00011088,2]
[352696999,1739249433265,-2755.46,0.00011088,2]
[352697000,1739249433275,-2603.69,0.00011088,2]
[352697001,1739249433287,-500.0,0.00011088,2]
[352697002,1739249433297,-1928.7,0.00011088,2]
[352697003,1739249433307,-1354.24,0.00011088,2]
[352697004,1739249433317,-500.0,0.00011088,2]
[352697005,1739249433327,-3297.3,0.00011088,2]
[352697006,1739249433336,-500.0,0.00011088,2]
[352697007,1739249433346,-1324.8,0.00011088,2]
[352697008,1739249433356,-1005.24,0.00011088,2]
[352697009,1739249433366,-559.02,0.00011088,2]
[352697010,1739249433375,-755.76,0.00011088,2]
[352697011,1739249433385,-500.29498554,0.00011088,2]
[352697012,1739249433395,-1404.09,0.00011088,2]
[352697013,1739249433405,-568.57,0.00011088,2]
[352697014,1739249433415,-310.00717578,0.00011088,2]
[352697015,1739249433424,-355.61369832,0.00011088,2]
[352697016,1739249433434,-500.0,0.00011088,2]
[352697017,1739249433443,-173.35091462,0.00011088,2]
[352697018,1739249433452,-500.0,0.00011089,2]
[352697019,1739249433462,-535.77,0.00011089,2]
[352697020,1739249433472,-500.0,0.00011089,2]
[352697021,1739249433482,-505.05014949,0.00011089,2]
[352697022,1739249433491,-500.0,0.00011089,2]
[352697023,1739249433501,-482.36088578,0.00011089,2]
[352697024,1739249433511,-500.0,0.00011089,2]
[352697025,1739249433521,-589.37,0.00011089,2]
[352697026,1739249433531,-500.0,0.00011089,2]
[352697027,1739249433542,-500.0,0.00011089,2]
[352697028,1739249433552,-500.0,0.00011089,2]
[352697029,1739249433562,-500.0,0.00011089,2]
[352697030,1739249433572,-500.0,0.00011089,2]
[352697031,1739249433581,-500.0,0.00011089,2]
[352697032,1739249433591,-500.0,0.00011089,2]
[352697033,1739249433601,-500.0,0.00011089,2]
[352697034,1739249433611,-509.82,0.00011089,2]
[352697035,1739249433621,-500.0,0.00011089,2]
[352697036,1739249433631,-500.0,0.00011089,2]
[352697037,1739249433641,-1375.01,0.00011089,2]
[352697038,1739249433651,-500.0,0.00011089,2]
[352697039,1739249433660,-877.8,0.00011089,2]
[352697040,1739249433670,-968.25,0.00011089,2]
[352697041,1739249433680,-602.14,0.00011089,2]
[352697042,1739249433690,-500.0,0.00011089,2]
[352697043,1739249433700,-664.67,0.00011089,2]
[352697044,1739249433710,-500.0,0.00011089,2]
[352697045,1739249433720,-842.18,0.00011089,2]
[352697046,1739249433730,-500.0,0.00011089,2]
[352697047,1739249433739,-500.0,0.00011089,2]
[352697048,1739249433749,-500.0,0.00011089,2]
[352697049,1739249433759,-1133.61,0.00011089,2]
[352697050,1739249433769,-500.0,0.00011089,2]
[352697051,1739249433778,-500.0,0.00011089,2]
[352697052,1739249433790,-597.22,0.00011089,2]
[352697053,1739249433800,-500.0,0.00011089,2]
[352697054,1739249433811,-745.65,0.00011089,2]
[352697055,1739249433822,-500.0,0.00011089,2]
[352697056,1739249433833,-500.0,0.00011089,2]
[352697057,1739249433845,-1170.98,0.00011089,2]
[352697058,1739249433856,-500.0,0.00011089,2]
[352697059,1739249433866,-500.0,0.00011089,2]
[352697060,1739249433877,-1080.52,0.00011089,2]
[352697061,1739249433887,-500.0,0.00011089,2]
[352697062,1739249433905,-537.88612676,0.00011089,2]
[352697063,1739249433917,-500.0,0.00011089,2]
[352697064,1739249433927,-647.70937116,0.00011089,2]
[352697065,1739249433938,-500.0,0.00011089,2]
[352697066,1739249433948,-500.0,0.00011089,2]
[352697067,1739249433957,-607.67,0.00011089,2]
[352697068,1739249433967,-500.0,0.00011089,2]
[352697069,1739249433977,-500.0,0.00011089,2]
[352697070,1739249433987,-500.0,0.00011089,2]
[352697071,1739249433997,-504.28523729,0.00011089,2]
[352697072,1739249434007,-562.37,0.00011089,2]
[352697073,1739249434017,-500.0,0.00011089,2]
[352697074,1739249434027,-868.94,0.00011089,2]
[352697075,1739249434040,-500.0,0.00011089,2]
[352697076,1739249434050,-500.0,0.00011089,2]
[352697077,1739249434060,-500.0,0.00011089,2]
[352697078,1739249434069,-855.78,0.00011089,2]
[352697079,1739249434080,-500.0,0.00011089,2]
[352697080,1739249434090,-500.0,0.00011089,2]
[352697081,1739249434100,-500.0,0.00011089,2]
[352697082,1739249434110,-500.0,0.00011089,2]
[352697083,1739249434120,-500.0,0.00011089,2]
[352697084,1739249434130,-500.0,0.00011089,2]
[352697085,1739249434140,-500.0,0.00011089,2]
[352697086,1739249434150,-500.0,0.00011089,2]
[352697087,1739249434161,-500.0,0.00011089,2]
[352697088,1739249434171,-500.0,0.00011089,2]
[352697089,1739249434183,-500.0,0.00011089,2]
[352697090,1739249434195,-500.0,0.00011089,2]
[352697091,1739249434205,-741.14,0.00011089,2]
[352697092,1739249434215,-500.0,0.00011089,2]
[352697093,1739249434225,-500.0,0.00011089,2]
[352697094,1739249434235,-500.0,0.00011089,2]
[352697095,1739249434245,-500.0,0.00011089,2]
[352697096,1739249434254,-780.99,0.00011089,2]
[352697097,1739249434264,-842.55,0.00011089,2]
[352697098,1739249434276,-899.04,0.00011089,2]
[352697099,1739249434288,-500.0,0.00011089,2]
[352697100,1739249434298,-500.0,0.00011089,2]
[352697101,1739249434310,-500.0,0.00011089,2]
[352697102,1739249434319,-500.0,0.00011089,2]
[352697103,1739249434329,-188.01153507,0.00011089,7]
[352697104,1739249434339,-500.0,0.00011089,2]
[352697105,1739249434348,-690.3,0.00011089,2]
[352697106,1739249434357,-500.0,0.00011089,2]
[352697107,1739249434368,-890.45,0.00011089,2]
[352697108,1739249434378,-500.0,0.00011089,2]
[352697109,1739249434388,-500.0,0.00011089,2]
[352697110,1739249434398,-500.0,0.00011089,2]
[352697111,1739249434408,-728.18,0.00011089,2]
[352697112,1739249434417,-500.0,0.00011089,2]
[352697113,1739249434427,-811.4,0.00011089,2]
[352697114,1739249434437,-500.0,0.00011089,2]
[352697115,1739249434447,-500.0,0.00011089,2]
[352697116,1739249434457,-500.0,0.00011089,2]
[352697117,1739249434467,-500.0,0.00011089,2]
[352697118,1739249434477,-500.0,0.00011089,2]
[352697119,1739249434488,-510.73,0.00011089,2]
[352697120,1739249434498,-500.0,0.00011089,2]
[352697121,1739249434508,-500.0,0.00011089,2]
[352697122,1739249434518,-500.0,0.00011089,2]
[352697123,1739249434528,-500.0,0.00011089,2]
[352697124,1739249434540,-500.0,0.00011089,2]
[352697125,1739249434549,-500.0,0.00011089,2]
[352697126,1739249434559,-500.0,0.00011089,2]
[352697127,1739249434568,-500.0,0.00011089,2]
[352697128,1739249434578,-1026.56,0.00011089,2]
[352697129,1739249434587,-500.0,0.00011089,2]
[352697130,1739249434597,-500.0,0.00011089,2]
[352697131,1739249434606,-611.37,0.00011089,2]
[352697132,1739249434616,-500.0,0.00011089,2]
[352697133,1739249434626,-500.0,0.00011089,2]
[352697134,1739249434636,-500.0,0.00011089,2]
[352697135,1739249434646,-500.0,0.00011089,2]
[352697136,1739249434655,-500.0,0.00011089,2]
[352697137,1739249434665,-921.7,0.00011089,2]
[352697138,1739249434675,-500.0,0.00011089,2]
[352697139,1739249434685,-500.0,0.00011089,2]
[352697140,1739249434695,-500.0,0.00011089,2]
[352697141,1739249434705,-500.0,0.00011089,2]
[352697142,1739249434714,-587.15937929,0.00011089,2]
[352697143,1739249434723,-500.0,0.00011089,2]
[352697144,1739249434734,-665.9,0.00011089,2]
[352697145,1739249434743,-885.52,0.00011089,2]
[352697146,1739249434753,-500.0,0.00011089,2]
[352697147,1739249434762,-735.43,0.00011089,2]
[352697148,1739249434772,-500.0,0.00011089,2]
[352697149,1739249434782,-500.0,0.00011089,2]
[352697150,1739249434795,-500.0,0.00011089,2]
[352697151,1739249434805,-500.0,0.00011089,2]
[352697152,1739249434815,-500.0,0.00011089,2]
[352697153,1739249434825,-500.0,0.00011089,2]
[352697154,1739249434836,-721.07,0.00011089,2]
[352697155,1739249434846,-500.0,0.00011089,2]
[352697156,1739249434855,-503.36,0.00011089,2]
[352697157,1739249434865,-500.0,0.00011089,2]
[352697158,1739249434875,-500.0,0.00011089,2]
[352697159,1739249434885,-500.0,0.00011089,2]
[352697160,1739249434895,-1099.75,0.00011089,2]
[352697161,1739249434905,-500.0,0.00011089,2]
[352697162,1739249434915,-500.0,0.00011089,2]
[352697163,1739249434925,-1103.18,0.00011089,2]
[352697164,1739249434935,-500.0,0.00011089,2]
[352697165,1739249434945,-500.0,0.00011089,2]
[352697166,1739249434955,-572.56,0.00011089,2]
[352697167,1739249434964,-500.0,0.00011089,2]
[352697168,1739249434974,-779.09,0.00011089,2]
[352697169,1739249434984,-500.0,0.00011089,2]
[352697170,1739249434993,-758.99,0.00011089,2]
[352697171,1739249435003,-500.0,0.00011089,2]
[352697172,1739249435013,-500.0,0.00011089,2]
[352697173,1739249435023,-500.0,0.00011089,2]
[352697174,1739249435032,-500.0,0.00011089,2]
[352697175,1739249435044,-500.0,0.00011089,2]
[352697176,1739249435055,-858.33,0.00011089,2]
[352697177,1739249435065,-500.0,0.00011089,2]
[352697178,1739249435075,-506.8521286,0.00011089,2]
[352697179,1739249435084,-500.0,0.00011089,2]
[352697180,1739249435094,-500.0,0.00011089,2]
[352697181,1739249435104,-839.37,0.00011089,2]
[352697182,1739249435113,-926.57,0.00011089,2]
[352697183,1739249435123,-500.0,0.00011089,2]
[352697184,1739249435132,-508.42212136,0.00011089,2]
[352697185,1739249435142,-500.0,0.00011089,2]
[352697186,1739249435152,-500.0,0.00011089,2]
[352697187,1739249435162,-500.0,0.00011089,2]
[352697188,1739249435171,-903.55,0.00011089,2]
[352697189,1739249435186,-500.0,0.00011089,2]
[352697190,1739249435196,-500.0,0.00011089,2]
[352697191,1739249435205,-500.0,0.00011089,2]
[352697192,1739249435215,-500.0,0.00011089,2]
[352697193,1739249435227,-1971.44,0.00011089,2]
[352697194,1739249435236,-500.0,0.00011089,2]
[352697195,1739249435247,-2456.05,0.00011089,2]
[352697196,1739249435256,-500.0,0.00011089,2]
[352697197,1739249435266,-500.0,0.00011089,2]
[352697198,1739249435278,-1084.93,0.00011089,2]
[352697199,1739249435290,-500.0,0.00011089,2]
[352697200,1739249435299,-1375.183598,0.00011089,2]
[352697201,1739249435309,-809.99,0.00011089,2]
[352697202,1739249435318,-1570.14,0.00011089,2]
[352697203,1739249435328,-500.0,0.00011089,2]
[352697204,1739249435337,-1236.6,0.00011089,2]
[352697205,1739249435346,-890.04,0.00011089,2]
[352697206,1739249435355,-765.68,0.00011089,2]
[352697207,1739249435366,-723.54,0.00011089,2]
[352697208,1739249435583,-1429.053369,0.00011089,2]
[352697209,1739249435593,-1604.45,0.00011089,2]
[352697210,1739249435602,-681.51,0.00011089,2]
[352697211,1739249435611,-793.03,0.00011089,2]
[352697212,1739249435620,-500.0,0.00011089,2]
[352697213,1739249435629,-1015.84,0.00011089,2]
[352697214,1739249435638,-568.31662993,0.00011089,2]
[352697215,1739249435647,-543.02,0.00011089,2]
[352697216,1739249435656,-500.80372896,0.00011089,2]
[352697217,1739249435665,-517.53789873,0.00011089,2]
[352697218,1739249435674,-1000.0,0.00011089,2]
[352697219,1739249435684,-1742.93,0.00011089,2]
[352697220,1739249435693,-1255.74,0.00011089,2]
[352697221,1739249435702,-912.42,0.00011089,2]
[352697222,1739249435712,-500.0,0.00011089,2]
[352697223,1739249435721,-1620.23,0.00011089,2]